[Event "Slovakian ECo-C Extraliga 2024-25"]
[Site "Slovakia"]
[Date "2025.01.19"]
[Round "4.5"]
[White "Borosova, Zuzana"]
[Black "Borhy, Marcell"]
[Result "1-0"]
[Annotator "TA"]
[ECO "B70"]
[WhiteElo "2174"]
[BlackElo "2348"]
[PlyCount "109"]
[EventDate "2024.09.12"]
[EventType "team-tourn"]
[EventCountry "SVK"]
[SourceTitle "playchess.com"]
[Source "ChessBase"]
[SourceQuality "1"]
[TimeControl "5400+30"]

{[%evp 10,109,49,45,59,64,53,38,63,53,51,6,9,10,7,0,0,-6,0,-18,0,-12,-4,-16,-12,-6,-5,-8,-12,-34,-24,-26,-18,-11,-14,-14,-9,-10,18,18,22,28,29,28,44,20,33,35,41,37,100,93,105,108,115,110,108,100,171,166,175,150,143,140,185,167,177,160,189,201,336,327,270,390,400,391,386,388,402,392,387,380,397,384,616,342,258,0,689,683,654,629,716,743,857,863,1028,650,1002,972,896,879]} 1. e4 {[%emt 0:00:13]} c5 {[%emt 0:00:10]} 2. Nf3 {[%emt 0:00:04]} d6 {[%emt 0:00:06]} 3. d4 {[%emt 0:00:04]} cxd4 {[%emt 0:00:08]} 4. Nxd4 {[%emt 0:00:02]} Nf6 {[%emt 0:00:08]} 5. Nc3 {[%emt 0:00:04]} g6 {[%emt 0:01:16]} 6. f3 {[%emt 0:00:26]} Nc6 {[%emt 0:00:11]} 7. Be3 {[%emt 0:00:50]} h5 {[%emt 0:00:08]} 8. Qd2 {[%emt 0:00:11]} Nxd4 {[%emt 0:00:07] White is slightly better.} 9. Bxd4 {[%emt 0:00:04]} Bh6 {[%emt 0:00:07]} 10. Be3 {[%emt 0:00:06]} Bxe3 {[%emt 0:00:09]} 11. Qxe3 {[%emt 0:00:03]} Be6 {[%emt 0:00:27]} 12. Bb5+ {[%emt 0:05:52]} Kf8 {[%emt 0:00:08]} 13. O-O {[%emt 0:01:51]} Qa5 {[%emt 0:02:51]} 14. Ba4 {[%emt 0:04:28]} Rc8 {[%emt 0:04:45][%cal Oc8c3] aiming for ...Rxc3!} 15. Bb3 {[%emt 0:04:34]} Qc5 {[%emt 0:08:17]} 16. Rfe1 {[%emt 0:05:09]} h4 {[%emt 0:21:55]} 17. Bxe6 {[%emt 0:11:42]} fxe6 {[%emt 0:00:57]} 18. e5 {[%emt 0:03:07]} dxe5 {[%emt 0:00:45]} 19. Rad1 {[%emt 0:07:58]} (19. Qxc5 {simplifies} Rxc5 20. Re2 Kf7 21. Rae1) 19... Kf7 {[%emt 0:03:55]} 20. Rd2 {[%emt 0:02:20][%cal Bd1d2,Bd2e2,Be2e3][%mdl 32]} Rh5 {[%emt 0:06:05]} 21. Qxc5 {[%emt 0:19:55]} Rxc5 {[%emt 0:00:02]} 22. Ne4 {[%emt 0:00:34]} Rd5 {[%emt 0:16:35]} 23. Rde2 {[%emt 0:02:13]} Rf5 {[%emt 0:03:26]} 24. Nf2 {[%emt 0:01:37][%mdl 1024] White has compensation.} Ke8 {[%emt 0:07:24]} 25. Nd3 {[%emt 0:11:59]} Nd7 {[%emt 0:00:59][%cal Oh4h3]} 26. Re3 {[%emt 0:03:07]} a5 {[%emt 0:09:55]} 27. g4 {[%emt 0:05:08]} hxg3 {[%emt 0:01:16]} 28. hxg3 {[%emt 0:00:01][%cal Bh2g3,Bg3g4][%mdl 32]} b6 {[%emt 0:00:56]} 29. Kg2 {[%emt 0:02:39]} Kd8 {[%emt 0:01:16]} (29... Rf8 $14) 30. g4 $16 {[%emt 0:01:03]} Rf6 {[%emt 0:01:19]} 31. Kg3 {[%emt 0:02:34]} Kc7 {[%emt 0:05:24]} 32. Nxe5 {[%emt 0:04:38]} Nxe5 {[%emt 0:00:15]} 33. Rxe5 {[%emt 0:00:04]} Rxe5 {[%emt 0:00:11]} (33... Kd6 $16 34. f4 Kd7) 34. Rxe5 {[%emt 0:00:01][%mdl 4096] Endgame. KR-KR} Kd6 {[%emt 0:00:22]} 35. f4 {[%emt 0:00:30]} Rf8 {[%emt 0:02:08]} 36. Rg5 {[%emt 0:00:32]} Rf6 {[%emt 0:00:13]} 37. b3 {[%emt 0:00:47]} Kd7 {[%emt 0:00:23]} 38. c4 {[%emt 0:00:18]} e5 {[%emt 0:02:09]} 39. Rxe5 {[%emt 0:00:53]} ({Don't take} 39. fxe5 $6 Rc6 $14) 39... Rc6 {[%emt 0:01:27]} (39... a4 $142 40. Kf3 (40. bxa4 Rc6 $16) 40... axb3 41. axb3 Rc6) 40. Rd5+ $18 {[%emt 0:01:32]} Ke8 {[%emt 0:01:09]} 41. a4 {[%emt 0:00:00]} Rc8 {[%emt 0:00:00]} 42. Kf3 {[%emt 0:00:00]} Rc6 {[%emt 0:00:00]} 43. Ke4 {[%emt 0:00:00]} Re6+ {[%emt 0:00:00]} 44. Re5 {[%emt 0:00:00]} Rc6 {[%emt 0:00:00]} 45. Rb5 {[%emt 0:00:00]} Kd7 {[%emt 0:00:00]} 46. g5 {[%emt 0:00:00]} Re6+ $2 {[%emt 0:00:00]} (46... e6 47. Ke5 Ke7) 47. Kd4 {[%emt 0:00:00]} Rd6+ {[%emt 0:00:00]} 48. Ke4 $2 {[%emt 0:00:38]} (48. Ke3 Rc6 49. Kd4) 48... Re6+ {[%emt 0:00:00]} 49. Re5 {[%emt 0:00:49] [#] Hoping for Rxe6. White is clearly winning.} Rc6 {[%emt 0:00:00]} 50. f5 {[%emt 0:00:40]} gxf5+ {[%emt 0:00:00]} 51. Kxf5 {[%emt 0:00:02]} Ke8 {[%emt 0:00:00]} 52. Re6 {[%emt 0:00:25]} Rc5+ {[%emt 0:00:42]} 53. Kf4 {[%emt 0:01:04]} Kd7 {[%emt 0:01:08]} 54. Rxb6 {[%emt 0:00:06]} e5+ {[%emt 0:00:09]} 55. Ke4 {[%emt 0:00:06] Weighted Error Value: White=0.30/Black=0.19 (very precise) .  Mistake:       	---       	Black=4      Inaccurate:     	White=2     	Black=2      OK:         	White=15    	Black=16     Best:        	White=2     	Black=2} 1-0

[Event "Slovakian ECo-C Extraliga 2024-25"]
[Site "Slovakia"]
[Date "2025.01.19"]
[Round "4.5"]
[White "Bochnickova, Andrea"]
[Black "Istona, Martin"]
[Result "1/2-1/2"]
[Annotator "TA"]
[ECO "B31"]
[WhiteElo "2036"]
[BlackElo "2218"]
[PlyCount "150"]
[EventDate "2024.09.12"]
[EventType "team-tourn"]
[EventCountry "SVK"]
[SourceTitle "playchess.com"]
[Source "ChessBase"]
[SourceQuality "1"]
[TimeControl "5400+30"]

{[%evp 13,150,15,20,20,16,8,16,0,16,0,0,0,-2,-2,3,-14,4,21,29,-25,-25,-64,-50,-71,-58,-90,-64,-68,-76,-77,-79,-104,-96,-86,-94,-87,-43,-61,-50,-60,-52,-56,-9,-12,-3,-7,15,-209,100,112,308,316,362,64,75,64,75,69,69,69,69,69,69,69,70,70,70,70,164,181,168,168,158,121,121,8,182,75,75,0,0,0,0,0,0,0,1500,67,67,67,67,67,67,0,1250,1192,919,678,437,0,67,67,67,0,67,67,67,67,67,67,67,0,0,0,67,67,67,67,67,67,67,67,67,0,67,0,67,0,67,67,67,0,0,0,0,0,0,0,0]} 1. e4 {[%emt 0:00:37]} c5 {[%emt 0:00:26]} 2. Nf3 {[%emt 0:00:04]} Nc6 {[%emt 0:00:17]} 3. Bb5 {[%emt 0:00:12]} g6 4. O-O {[%emt 0:00:15]} Bg7 {[%emt 0:00:26]} 5. Re1 {[%emt 0:00:22]} e5 {[%emt 0:00:31]} 6. Bxc6 {[%emt 0:01:10]} dxc6 {[%emt 0:00:06]} 7. d3 {[%emt 0:00:30]} Qe7 {[%emt 0:01:46]} 8. Be3 {[%emt 0:02:07]} Nf6 {[%emt 0:01:08]} 9. h3 {[%emt 0:00:42]} O-O {[%emt 0:03:31]} 10. a4 {[%emt 0:02:18]} Nd7 {[%emt 0:03:17]} 11. a5 {[%emt 0:03:06]} Rd8 {[%emt 0:10:25]} 12. Nbd2 {[%emt 0:06:13]} Nf8 {[%emt 0:01:02]} 13. Nc4 {[%emt 0:00:28]} f6 {[%emt 0:00:31]} 14. Qe2 {[%emt 0:09:00]} Be6 {[%emt 0:10:22]} 15. Nfd2 {[%emt 0:14:30]} Bf7 {[%emt 0:17:48]} 16. Nb3 {[%emt 0:11:32]} (16. f4 $142) 16... Ne6 $11 {[%emt 0:00:45]} 17. c3 {[%emt 0:08:12]} Bf8 {[%emt 0:06:30]} 18. g3 {[%emt 0:05:32]} Qc7 {[%emt 0:03:06]} 19. Red1 {[%emt 0:08:16]} b5 {[%emt 0:22:57]} 20. axb6 {[%emt 0:07:30]} axb6 {[%emt 0:00:08]} 21. Rxa8 {[%emt 0:00:54]} Rxa8 {[%emt 0:00:03]} 22. d4 {[%emt 0:03:08]} b5 {[%emt 0:02:08]} 23. Ncd2 {[%emt 0:01:53]} cxd4 {[%emt 0:09:36]} 24. cxd4 {[%emt 0:00:08]} exd4 {[%emt 0:00:15]} 25. Nxd4 {[%emt 0:00:12]} Rd8 {[%emt 0:01:00]} 26. N2f3 {[%emt 0:02:00]} Nxd4 {[%emt 0:01:06]} 27. Bxd4 {[%emt 0:01:25]} Qd7 {[%emt 0:01:13]} (27... Bc4 $15 28. Qe1 Qd6) 28. Rc1 {[%emt 0:01:54]} Bc4 {[%emt 0:02:54]} (28... Qxh3 $6 29. Bxf6 Re8 30. Ne5 $16 (30. Rxc6 Bd5 $11)) 29. Qe3 {[%emt 0:00:57]} Qxh3 {[%emt 0:01:05] aiming for ...Bh6.} 30. b3 $2 {[%emt 0:00:29]} (30. Bxf6 $11 {and White stays safe.} Rd3 31. Qf4) 30... Bf7 $2 {[%emt 0:00:31] This pair of bishops is nice.} (30... Bh6 $19 31. Qe1 Bxc1 (31... Bxb3 32. Rxc6 Re8 33. Rxf6 $11) 32. bxc4 Bh6 33. cxb5 cxb5 34. Bxf6 Rf8) 31. Bxf6 $16 {[%emt 0:01:03]} (31. Rxc6 Qh5 $14) 31... Ra8 $2 {[%emt 0:00:34]} (31... Bh6 $16 {was necessary.} 32. Ng5 (32. Bg5 Bxg5 33. Qxg5 Qd7 $16) 32... Bxg5 33. Qxg5 Rd7) 32. Ng5 $18 {[%emt 0:01:30]} (32. Rxc6 $6 Qd7 33. Rb6 b4 $18) 32... Qd7 {[%emt 0:00:31]} 33. Nxf7 $2 {[%emt 0:02:01]} (33. Nxh7 $18 Qe6 (33... Kxh7 $2 34. Kg2 $18) 34. Kg2 (34. Nxf8 Qxf6 35. Nd7 Qd6 $18)) 33... Kxf7 $14 {[%emt 0:00:17]} 34. Bb2 {[%emt 0:01:44]} Bg7 {[%emt 0:00:42] Prevents Qc3.} 35. Bxg7 {[%emt 0:00:48]} Kxg7 $16 {[%emt 0:00:02][%mdl 4096] Endgame KQR-KQR} 36. Qc3+ {[%emt 0:00:08]} Kf7 {[%emt 0:00:53]} 37. Qxc6 {[%emt 0:00:41]} Qxc6 {[%emt 0:00:21]} 38. Rxc6 $14 {[%emt 0:00:04] KR-KR. White is a pawn up.} Ra1+ {[%emt 0:00:39]} 39. Kg2 {[%emt 0:00:06]} Rb1 {[%emt 0:00:05]} 40. Rc7+ {[%emt 0:01:04]} Kf6 {[%emt 0:00:30]} ({Black should try} 40... Kg8 $14) 41. Rxh7 $18 {[%emt 0:01:25]} Rxb3 {[%emt 0:00:30] [#]} 42. f4 $1 {[%emt 0:01:30]} g5 {[%emt 0:00:00]} 43. Rh6+ {[%emt 0:00:00]} Kg7 {[%emt 0:00:00]} 44. Rb6 {[%emt 0:00:00]} (44. fxg5 $16 {White wants to play Re6.} Re3 45. Re6) 44... b4 $2 {[%emt 0:00:00]} (44... g4 $11) 45. f5 {[%emt 0:00:00]} (45. fxg5 $18 {has better winning chances.} Re3 46. Rxb4) 45... Re3 $16 {[%emt 0:02:21]} 46. Rg6+ {[%emt 0:00:00]} (46. Rxb4 $16 g4 47. Kf2 Rf3+ 48. Kg2) 46... Kf7 $11 {[%emt 0:00:18]} 47. Rxg5 {[%emt 0:00:00]} b3 {[%emt 0:00:32][%cal Ob3b2] ( -> ...b2!)} 48. Rg6 {[%emt 0:00:00]} Rxe4 {[%emt 0:00:42]} 49. Rb6 {[%emt 0:00:00] Wards off Rb4} b2 $2 {[%emt 0:00:38][%mdl 8192]} 50. Rxb2 $2 {[%emt 0:00:00]} (50. Kf3 $1 $18 {[%cal Rf3e4]} Rd4 51. g4 (51. Rxb2 Kf6 $14)) 50... Kf6 $14 {[%emt 0:00:26]} 51. Rf2 $1 {[%emt 0:00:32]} Ra4 {[%emt 0:00:34]} 52. Kh3 {[%emt 0:00:10]} Rb4 {[%emt 0:00:30]} 53. g4 {[%emt 0:00:33]} (53. Rf3 $14) 53... Rb8 $2 {[%emt 0:00:30][%mdl 8192]} (53... Kg5 $11) 54. Kh4 $18 {[%emt 0:01:27]} Rh8+ {[%emt 0:00:22]} 55. Kg3 {[%emt 0:00:09]} Ra8 {[%emt 0:00:13] [#]} 56. Rf3 $2 {[%emt 0:02:11]} (56. Rh2 $1 $18 {[%cal Rh2h6]}) 56... Rb8 {[%emt 0:00:15]} (56... Kg5 $11) 57. Re3 {[%emt 0:01:03]} Kg5 {[%emt 0:00:13]} 58. Rf3 {[%emt 0:01:12]} Kf6 {[%emt 0:00:01]} ({Wrong is} 58... Rb4 $2 59. f6 $18) 59. Rf4 {[%emt 0:00:48]} Ra8 {[%emt 0:00:32]} 60. Re4 {[%emt 0:00:46] Black must now prevent Kf4.} Kg5 {[%emt 0:00:11]} 61. Kf3 {[%emt 0:00:16]} Ra3+ {[%emt 0:00:42]} 62. Re3 {[%emt 0:01:14]} (62. Ke2 $14) 62... Ra4 $11 {[%emt 0:00:09]} 63. Re4 {[%emt 0:00:04]} (63. Re8 $11 Rf4+ 64. Ke3 Rxg4 65. Rg8+ Kxf5 66. Rxg4 Kxg4) 63... Ra3+ $14 {[%emt 0:00:04]} 64. Kf2 {[%emt 0:00:43]} Rb3 {[%emt 0:00:11]} 65. Ra4 {[%emt 0:00:17]} Rc3 {[%emt 0:00:28]} 66. Rd4 {[%emt 0:00:49]} Ra3 {[%emt 0:00:10]} 67. Ke2 {[%emt 0:00:25]} Rg3 {[%emt 0:00:42]} 68. Kf2 {[%emt 0:00:25]} Ra3 {[%emt 0:00:02]} 69. Re4 {[%emt 0:00:46]} Rb3 {[%emt 0:00:12]} 70. Re3 {[%emt 0:00:06] Against Rc3} (70. Ke2 $14) 70... Rb2+ {[%emt 0:01:16]} (70... Rb4 $11) 71. Kf3 $1 {[%emt 0:00:58]} Rb4 {[%emt 0:00:12]} 72. Re6 {[%emt 0:01:01]} ({Better is} 72. Re4 $14 Rb3+ 73. Ke2) 72... Rf4+ $11 {[%emt 0:00:45]} 73. Ke3 {[%emt 0:00:11] Rg6+ would kill now.} Rxg4 {[%emt 0:00:27]} 74. Rg6+ {[%emt 0:00:07]} Kxf5 {[%emt 0:00:06]} 75. Rxg4 {[%emt 0:00:03]} Kxg4 {[%emt 0:00:38]} 1/2-1/2

[Event "Slovakian ECo-C Extraliga 2024-25"]
[Site "Slovakia"]
[Date "2025.01.19"]
[Round "4.6"]
[White "Jablonicky, Martin"]
[Black "Toth Ervin"]
[Result "1-0"]
[Annotator "TA"]
[ECO "E94"]
[WhiteElo "2418"]
[BlackElo "2403"]
[PlyCount "79"]
[EventDate "2024.09.12"]
[EventType "team-tourn"]
[EventCountry "SVK"]
[SourceTitle "playchess.com"]
[Source "ChessBase"]
[SourceQuality "1"]
[TimeControl "5400+30"]

{[%evp 21,79,50,53,59,54,41,79,43,40,33,91,95,88,77,87,94,87,100,101,59,259,233,275,261,314,339,301,253,278,267,289,161,174,179,160,122,171,148,237,205,232,179,177,171,205,173,327,197,204,210,1469,1325,1527,1502,29986,29987,29989,29990,29990,29991]} 1. e4 {[%emt 0:00:05]} g6 {[%emt 0:00:37]} 2. d4 {[%emt 0:00:06]} Bg7 {[%emt 0:00:04]} 3. Nf3 {[%emt 0:00:37]} d6 {[%emt 0:00:33]} 4. c4 {[%emt 0:00:23]} Nf6 {[%emt 0:00:35]} 5. Nc3 {[%emt 0:00:05]} O-O {[%emt 0:00:11]} 6. Be2 {[%emt 0:02:09]} e5 {[%emt 0:01:53]} 7. O-O {[%emt 0:00:06]} exd4 {[%emt 0:07:30]} 8. Nxd4 {[%emt 0:00:06]} Re8 {[%emt 0:00:12]} 9. f3 {[%emt 0:00:05]} Nbd7 {[%emt 0:00:41]} 10. Bg5 {[%emt 0:05:26]} c6 {[%emt 0:02:16]} 11. Kh1 {[%emt 0:00:39]} a5 {[%emt 0:08:44]} 12. Qd2 {[%emt 0:02:10] E94: King's Indian: Classical: 6 Be2 e5 7 0-0: Various Black 7th moves.} Qb6 {[%emt 0:10:00][%cal Of6e4]} 13. Be3 {[%emt 0:01:56][%cal Od4b5]} Qc7 {[%emt 0:04:18]} 14. g4 $146 {[%emt 0:03:24][%cal Bg2g4,Bg4f5][%mdl 32] White is better.} (14. Rad1 Nc5 15. Nc2 Nfd7 16. Bd4 Bf8 17. b3 Ne6 18. Bf2 Ndc5 19. Bg3 Qe7 20. Qe1 Qc7 21. h3 {½-½ Nechaev,A (2324)-Vertiz Gutierrez,P (2318) CUB-RUS email 2018 [18]}) 14... Nc5 {[%emt 0:05:00]} 15. Rad1 {[%emt 0:03:41]} Bf8 {[%emt 0:02:37] [#]} (15... h5 $14) 16. Nf5 $1 {[%emt 0:12:48]} Bxf5 {[%emt 0:04:11]} 17. gxf5 {[%emt 0:02:17]} Rad8 {[%emt 0:04:29]} 18. Bg5 {[%emt 0:03:11]} Bg7 {[%emt 0:02:02]} 19. Qf4 {[%emt 0:02:39]} Qe7 {[%emt 0:04:37][%cal Oh7h6]} 20. Qh4 {[%emt 0:01:59] White is more active.} gxf5 $2 {[%emt 0:13:09][%csl Of5,Of7,Oh7] Black has weak pawns} ({Black should try} 20... h6 $14 21. Bxh6 Nfxe4 22. Qxe7 Rxe7 23. Bxg7 Nxc3 24. Bxc3 Rxe2) 21. Rg1 {[%emt 0:03:20]} Kh8 {[%emt 0:01:16]} 22. exf5 {[%emt 0:05:02]} Rg8 {[%emt 0:10:23]} 23. Rg3 {[%emt 0:02:25]} Qe5 {[%emt 0:02:52]} 24. Rd4 {[%emt 0:00:25] Rh3 would now be deadly.} Ncd7 {[%emt 0:03:25][%cal Of6h5] [#]} 25. Rh3 $1 {[%emt 0:03:17]} Nf8 {[%emt 0:01:00]} 26. Bd3 {[%emt 0:12:55]} (26. Rd1 $142 d5 27. cxd5 (27. Ne4 dxe4 28. Rxd8 Qxf5 $16)) 26... Re8 {[%emt 0:01:26]} 27. Ne2 {[%emt 0:00:12]} d5 {[%emt 0:01:52]} 28. cxd5 {[%emt 0:00:45]} cxd5 {[%emt 0:00:11]} (28... c5 $16 29. Bf4 Qe7) 29. Bd2 {[%emt 0:03:22]} Qd6 {[%emt 0:01:30]} (29... Rc8 $16 30. Qg5 (30. Bxa5 Rc2 $16) 30... b6) 30. Bc3 {[%emt 0:01:31]} h6 {[%emt 0:06:38]} 31. Nf4 {[%emt 0:15:39][%cal Od4d5]} N8h7 {[%emt 0:00:15]} 32. Rg3 {[%emt 0:01:16]} (32. Bxa5 $6 Ra8 33. Bc3 Rxa2 $16) 32... Qb6 {[%emt 0:00:19]} 33. Rg6 {[%emt 0:03:40]} Qd8 $2 {[%emt 0:01:07]} (33... a4 34. a3 (34. Nxd5 Qc6 $11) 34... Rc8) 34. Rg1 {[%emt 0:03:53]} Qb6 {[%emt 0:00:15]} 35. a4 {[%emt 0:04:46]} (35. Nxd5 $2 Nxd5 36. Rdg4 (36. Rxd5 $2 {is a self mate.} Qxg1+ 37. Kxg1 Bd4+ 38. Kh1 Rg1#) 36... Nxc3 37. bxc3 Bxc3 38. Rxg8+ Rxg8 $19) 35... Bf8 $2 {[%emt 0:00:05]} (35... Re3 36. Qf2 (36. Nxd5 Nxd5 37. Rxd5 Bxc3 $11) 36... Ree8) 36. Rxg8+ $18 {[%emt 0:00:37]} (36. Nxd5 $2 {too greedy.} Rxg1+ 37. Kxg1 Nxd5 $19) 36... Kxg8 {[%emt 0:00:05]} 37. Nxd5 {[%emt 0:00:46]} Nxd5 {[%emt 0:01:19] [#]} 38. Rg4+ $1 {[%emt 0:00:24][%cal Bd4g4,Bg4g7,Bg7h7][%mdl 32] White mates.} Bg7 {[%emt 0:00:02]} 39. Rxg7+ {[%emt 0:00:30]} Kf8 {[%emt 0:00:04]} 40. Rxh7 {[%emt 0:00:28] Weighted Error Value: White=0.24 (precise) /Black=0.65  Loses game:     	---       	Black=1      Mistake:       	White=1     	Black=5      Inaccurate:     	White=3     	Black=1      OK:         	White=5     	Black=7      Best:        	White=2     	Black=2      Strong:       	White=1     	---} 1-0

[Event "Slovakian ECo-C Extraliga 2024-25"]
[Site "Slovakia"]
[Date "2025.01.19"]
[Round "4.6"]
[White "Varga, Zoltan"]
[Black "Molnar, Erno"]
[Result "1-0"]
[Annotator "TA"]
[ECO "E06"]
[WhiteElo "2304"]
[BlackElo "2220"]
[PlyCount "78"]
[EventDate "2024.09.12"]
[EventType "team-tourn"]
[EventCountry "SVK"]
[SourceTitle "playchess.com"]
[Source "ChessBase"]
[SourceQuality "1"]
[TimeControl "5400+30"]

{[%evp 16,78,51,35,33,34,39,39,58,7,14,16,21,0,82,100,106,68,91,100,94,105,99,102,93,57,58,25,111,111,115,97,94,91,115,108,216,235,229,227,247,186,190,203,217,181,162,121,136,120,512,156,152,151,143,0,133,121,118,94,262,216,335,324,1056]} 1. d4 {[%emt 0:00:09]} Nf6 {[%emt 0:00:05]} 2. c4 {[%emt 0:00:13]} e6 {[%emt 0:05:33]} 3. Nf3 {[%emt 0:00:11]} d5 {[%emt 0:00:07]} 4. g3 {[%emt 0:00:18]} Be7 {[%emt 0:03:31]} 5. Bg2 {[%emt 0:00:26]} O-O {[%emt 0:01:18]} 6. Nc3 {[%emt 0:00:04]} c6 {[%emt 0:05:40]} 7. O-O {[%emt 0:01:56]} b6 {[%emt 0:14:05]} 8. Ne5 {[%emt 0:05:33]} Bb7 {[%emt 0:07:02]} 9. e4 {[%emt 0:15:32]} Nxe4 {[%emt 0:14:04] E06: Closed Catalan: Early deviations.} 10. Nxe4 {[%emt 0:00:44]} dxe4 {[%emt 0:00:08]} 11. Bxe4 {[%emt 0:00:47][%cal Bg2e4,Be4c2,Bc2a4,Ba4e8][%mdl 32]} f6 {[%emt 0:02:57] White is slightly better.} 12. Nf3 {[%emt 0:04:21]} (12. Ng6 $14 Re8 (12... hxg6 $2 13. Bxg6 $18) 13. Nxe7+ Rxe7 14. Re1) 12... f5 $11 {[%emt 0:02:01]} 13. Bc2 {[%emt 0:02:48]} c5 $146 {[%emt 0:01:48]} (13... Nd7 14. Qe2 c5 15. Qxe6+ Kh8 16. Ne5 Nxe5 17. dxe5 Qc7 18. Bf4 Rad8 19. Ba4 g5 {1-0 Splichal,S (2021)-Schoupal,P (1951) CZE-chT2F 2223 2022 (11)}) 14. Qe2 {[%emt 0:10:19]} (14. Re1 {simplifies} Nc6 15. Qe2 Qd7 16. Qxe6+ Qxe6 17. Rxe6 Nb4 18. Bd1) 14... cxd4 {[%emt 0:11:23]} (14... Kh8 $11) 15. Qxe6+ $16 {[%emt 0:02:00]} Kh8 {[%emt 0:00:10][%cal Bg8h8,Bh8g7,Bg7f6][%mdl 32]} 16. Ne5 {[%emt 0:00:19]} Qe8 {[%emt 0:15:46] [#] and ...Rf6 would now be decisive Against Nf7+} 17. Ba4 $1 {[%emt 0:32:58] White is much more active. The black rooks are passive.} Rf6 {[%emt 0:04:46]} 18. Qxf6 {[%emt 0:12:21]} (18. Bxe8 Rxe6 19. Re1 Be4) 18... gxf6 {[%emt 0:00:13]} 19. Bxe8 {[%emt 0:00:05]} fxe5 {[%emt 0:00:07]} 20. b3 {[%emt 0:02:28][%cal Bb2b3,Bb3b4][%mdl 32]} Kg7 $1 {[%emt 0:06:42]} 21. Bb2 {[%emt 0:00:23]} Bc5 {[%emt 0:00:16]} (21... Bf3 $11) 22. a3 {[%emt 0:04:09]} Bf3 {[%emt 0:02:59]} 23. Rfe1 {[%emt 0:00:48]} Kf6 {[%emt 0:00:19]} 24. b4 {[%emt 0:00:04]} Bf8 {[%emt 0:00:24]} 25. Ba4 {[%emt 0:00:45]} Nc6 {[%emt 0:01:01]} (25... a5 $16) 26. Bxc6 $18 {[%emt 0:01:40]} Bxc6 {[%emt 0:00:05]} 27. f4 {[%emt 0:00:01]} exf4 {[%emt 0:00:18]} 28. Rad1 {[%emt 0:02:06]} fxg3 {[%emt 0:00:51]} 29. hxg3 {[%emt 0:00:01]} (29. Bxd4+ Kf7 30. hxg3 Be4 $18) 29... Be4 {[%emt 0:00:44]} 30. Rxd4 {[%emt 0:00:09]} (30. Bxd4+ Kf7 31. Be3 a5) 30... Kg5 {[%emt 0:00:11]} 31. Kf2 {[%emt 0:00:35]} a5 {[%emt 0:00:10]} 32. Bc3 {[%emt 0:01:04]} Bg7 $2 {[%emt 0:01:13][%mdl 8192]} (32... axb4 $16 {is more resistant.} 33. axb4 (33. Bxb4 Bc5 $14) 33... Ra2+ 34. Re2 Ra3 35. Bd2+ Kf6) 33. Bd2+ $2 {[%emt 0:00:02]} (33. Rexe4 $1 $18 {and the rest is easy.} fxe4 34. Rd5+ Kg6 35. Rd6+ Kf7 36. Rd7+ Ke6 37. Rxg7) 33... Kg4 $16 {[%emt 0:00:11]} 34. Rd7 {[%emt 0:00:18]} Be5 {[%emt 0:00:15] [#]} 35. Rg1 {[%emt 0:01:22]} (35. Rxh7 $6 Bxg3+ 36. Ke2 Bxe1 37. Rg7+ Kh5 38. Kxe1 axb4 39. axb4 Ra2 $11) ({White should try} 35. Re3 $1 $16 {Strongly threatening bxa5.} axb4 36. Bxb4 (36. Rxh7 Bd4 $16)) 35... h5 {[%emt 0:00:21]} (35... axb4 $11 36. Rxh7 (36. Bxb4 Rc8 $11) 36... Bd4+ 37. Be3 Bxe3+ 38. Kxe3 Rxa3+ 39. Kd4 Rd3+ (39... Rxg3 $2 {loses.} 40. Rg7+ Kf4 41. R7xg3 $18) 40. Ke5 b5 (40... Rxg3 $2 41. Rg7+ Kf3 42. R1xg3+ $18)) 36. bxa5 {[%emt 0:00:42]} bxa5 {[%emt 0:00:13]} 37. Re7 {[%emt 0:00:20]} Bf6 {[%emt 0:01:29] [#]} (37... Rd8 $16 38. Be3 (38. Bxa5 Bd4+ 39. Ke2 Bf3+ 40. Kf1 Ra8 $11) 38... Bc3) 38. Re6 $1 $18 {[%emt 0:00:02]} Rd8 {[%emt 0:00:28]} (38... Bb2 {was necessary.} 39. Rg6+ Kh3) 39. Be3 {[%emt 0:00:42]} (39. Bxa5 Bd4+ 40. Ke2 Bf3+ 41. Kf1 Rc8 $11) 39... Kh3 $2 {[%emt 0:00:06] Weighted Error Value: White=0.43/Black=0.53  Loses game:     	---       	Black=2      Missed win:     	White=1     	---        Mistake:       	White=2     	Black=6      Inaccurate:     	White=3     	---        OK:         	White=8     	Black=6      Best:        	White=4     	Black=4      Strong:       	White=1     	Black=1      Brilliant:      	White=1     	---} (39... Bd4 40. Rg6+ Kh3) 1-0